[Event "Turkey IS Bank Super League 2017"]
[Site "Darica-Kocaeli"]
[Date "2017.07.26"]
[Round "1.46"]
[White "Ozen, Bahadir"]
[Black "Gulden, Egemen"]
[Result "1-0"]
[ECO "A25"]
[WhiteElo "2315"]
[BlackElo "2044"]
[Annotator "NA"]
[PlyCount "117"]
[EventType "team-tourn"]
[EventCountry "TUR"]
[SourceTitle "playchess.com"]
[Source "ChessBase"]
[SourceQuality "1"]
[TimeControl "40/5400+30:1800+30"]

1. g3 {[%emt 0:00:30] 02][%} e5 {[%emt 0:01:00] 02][%} 2. Bg2 {[%emt 0:00:30] 02][%} Nc6 {[%emt 0:00:30] 022]} 3. c4 {[%emt 0:01:30] ]02]} g6 {[%emt 0:00:30] ]02]} 4. Nc3 {[%emt 0:01:30] ]0]} Bg7 {[%emt 0:00:30] ]]0} 5. d3 {[%emt 0:01:30] ]]0} d6 {[%emt 0:01:30] ]]0} 6. Nf3 {[%emt 0:00:30] ]]0} h6 {[%emt 0:00:30] ]]0} 7. Rb1 {[%emt 0:03:30] ]]0} Be6 {[%emt 0:00:30] ]]0} 8. b4 {[%emt 0:03:30] ]]0} Qd7 {[%emt 0:00:30] ]]0} 9. b5 {[%emt 0:01:30] ]]0} Nd8 {[%emt 0:00:30] ]]} 10. O-O {[%emt 0:05:30] ]]]} Ne7 {[%emt 0:02:30] ]]]} 11. Bb2 {[%emt 0:08:30] ]]]} O-O {[%emt 0:04:30] ]]} 12. c5 {[%emt 0:04:30] ]]} d5 {[%emt 0:10:30] ]]} 13. Na4 {[%emt 0:02:30] ]]} f6 {[%emt 0:09:30] ]]]} 14. c6 {[%emt 0:01:30] ]]]} bxc6 {[%emt 0:02:30] ]]]} 15. Nc5 {[%emt 0:01:30] ]]} Qc8 {[%emt 0:06:30] ]]} 16. Nxe6 {[%emt 0:06:30] ]]} Qxe6 {[%emt 0:01:30] ]]} 17. bxc6 {[%emt 0:01:30] ]]]} Ndxc6 {[%emt 0:13:30] ]]]} 18. Nd2 {[%emt 0:05:30] ]]} f5 {[%emt 0:15:30] ]]]} 19. Nb3 {[%emt 0:09:30] ]]]} a5 {[%emt 0:17:25]} 20. Nc5 {[%emt 0:05:30] 5 [%clk 0:25:0] 21]} Qc8 {[%emt 0:06:29] %clk} 21. Qa4 {[%emt 0:08:30] 6]%} Rd8 {[%emt 0:00:28] ]} 22. e4 {[%emt 0:01:30] 0]]} fxe4 {[%emt 0:00:36] ]} 23. dxe4 {[%emt 0:00:30] ]]]} d4 {[%emt 0:01:09] ]} 24. Qc4+ {[%emt 0:07:23] ]} Kh8 {[%emt 0:00:02] ]} 25. f4 {[%emt 0:01:10] ]]} Rd6 {[%emt 0:00:58] ]]} 26. f5 {[%emt 0:01:14] ]]} Qg8 {[%emt 0:01:45] [%clk 0:00.54] [%clk 0:01:06] [%clk 0:01.27] 4 [%clk 0:01:56]} 27. Qxg8+ {[%emt 0:15:57]} Kxg8 {[%emt 0:00:42]} 28. Ne6 {[%emt 0:00:30]} gxf5 {[%emt 0:00:30]} 29. exf5 {[%emt 0:00:30]} Bf6 {[%emt 0:00:30]} 30. Ba3 {[%emt 0:00:30]} Rc8 {[%emt 0:00:30]} 31. Bxd6 {[%emt 0:00:30]} cxd6 {[%emt 0:00:30]} 32. Rb5 {[%emt 0:00:30]} Nd8 {[%emt 0:00:30]} 33. Rxa5 {[%emt 0:00:30]} Nxe6 {[%emt 0:00:30]} 34. fxe6 {[%emt 0:00:30]} Kg7 {[%emt 0:00:30]} 35. Ra7 {[%emt 0:00:30]} Rc5 {[%emt 0:00:30]} 36. Rxe7+ {[%emt 0:00:30]} Bxe7 {[%emt 0:00:30]} 37. Rf7+ {[%emt 0:00:30]} Kg8 {[%emt 0:00:30]} 38. Rxe7 {[%emt 0:00:30]} Rc1+ {[%emt 0:00:30]} 39. Kf2 {[%emt 0:00:30]} Rc2+ {[%emt 0:00:30]} 40. Kf1 {[%emt 0:00:30]} Rc1+ {[%emt 0:30:30]} 41. Ke2 {[%emt 0:30:30]} Rc2+ {[%emt 0:00:00]} 42. Kf3 {[%emt 0:00:00]} e4+ {[%emt 0:00:00]} 43. Kxe4 {[%emt 0:00:00]} Rxg2 {[%emt 0:00:00]} 44. a4 {[%emt 0:00:00]} Rxh2 {[%emt 0:00:00]} 45. Kxd4 {[%emt 0:00:00]} Kf8 {[%emt 0:00:00]} 46. Rf7+ {[%emt 0:00:00]} Ke8 {[%emt 0:00:00]} 47. Kd5 {[%emt 0:00:00]} Rd2+ {[%emt 0:02:22]} 48. Kc6 {[%emt 0:00:00]} Re2 {[%emt 0:00:53]} 49. Kxd6 {[%emt 0:00:00]} Rd2+ {[%emt 0:01:01]} 50. Ke5 {[%emt 0:00:00]} Rg2 {[%emt 0:01:26]} 51. a5 {[%emt 0:00:22]} Rxg3 {[%emt 0:00:55]} 52. a6 {[%emt 0:00:30]} Re3+ {[%emt 0:00:04]} 53. Kd5 {[%emt 0:00:21]} Rd3+ {[%emt 0:00:24]} 54. Ke5 {[%emt 0:00:29]} Re3+ {[%emt 0:00:30]} 55. Kf6 {[%emt 0:00:00]} Rf3+ {[%emt 0:00:43]} 56. Kg7 {[%emt 0:00:11]} Rg3+ {[%emt 0:00:30]} 57. Kh7 {[%emt 0:00:00]} Re3 {[%emt 0:00:12]} 58. a7 {[%emt 0:00:12]} Rxe6 {[%emt 0:00:17]} 59. Rb7 {[%emt 0:00:00]} 1-0

[Event "Turkey IS Bank Super League 2017"]
[Site "Darica-Kocaeli"]
[Date "2017.07.26"]
[Round "1.47"]
[White "Nomin-Erdene, Davaademberel"]
[Black "Akdogan, Alperen"]
[Result "1-0"]
[ECO "B01"]
[WhiteElo "2373"]
[BlackElo "2151"]
[Annotator "NA"]
[PlyCount "71"]
[EventType "team-tourn"]
[EventCountry "TUR"]
[SourceTitle "playchess.com"]
[Source "ChessBase"]
[SourceQuality "1"]
[TimeControl "40/5400+30:1800+30"]

1. e4 d5 2. exd5 Qxd5 3. Nc3 Qd6 4. d4 Nf6 5. Nf3 Bg4 6. h3 Bh5 7. g4 Bg6 8. Ne5 Nbd7 9. Nxg6 hxg6 10. Bg2 c6 11. Ne2 Nb6 12. c3 e6 13. Qb3 Qc7 14. a4 Nbd5 15. a5 Be7 16. Bd2 b5 17. axb6 Nxb6 18. c4 O-O 19. Bf4 Qd7 20. O-O Rfd8 21. Ra6 c5 22. Bxa8 Rxa8 23. Qf3 Rd8 24. dxc5 Bxc5 25. b3 Qd3 26. Qxd3 Rxd3 27. Rxa7 Rxb3 28. Rc7 Ne4 29. Be3 Bxe3 30. fxe3 Rxe3 31. Rfxf7 Rxe2 32. Rxg7+ Kf8 33. Rcf7+ Ke8 34. Rb7 Kf8 35. Rgc7 Re1+ 36. Kg2 1-0

[Event "Turkey IS Bank Super League 2017"]
[Site "Darica-Kocaeli"]
[Date "2017.07.26"]
[Round "1.48"]
[White "Duran, Esma Doga"]
[Black "Yurdakul, Didem Nuray"]
[Result "1-0"]
[ECO "D36"]
[WhiteElo "1939"]
[BlackElo "1697"]
[Annotator "NA RC"]
[PlyCount "56"]
[EventType "team-tourn"]
[EventCountry "TUR"]
[SourceTitle "playchess.com"]
[Source "ChessBase"]
[SourceQuality "1"]
[TimeControl "40/5400+30:1800+30"]

1. d4 {[%emt 0:00:30] 58]} d5 {[%emt 0:01:00] 58]} 2. c4 {[%emt 0:00:30] 58]} e6 {[%emt 0:00:30] 58]} 3. Nc3 {[%emt 0:00:30] ]58]} Nf6 {[%emt 0:00:30] ]58]} 4. cxd5 {[%emt 0:00:30] ]58]} exd5 {[%emt 0:00:30] ]58]} 5. Bg5 {[%emt 0:00:30] ]58]} Be7 {[%emt 0:00:00] ]58]} 6. e3 {[%emt 0:00:00] ]58]} c6 {[%emt 0:00:00] ]55]} 7. Qc2 {[%emt 0:00:00] ]55]} O-O {[%emt 0:00:30] ]55} 8. Bd3 {[%emt 0:00:30] ]555} Nbd7 {[%emt 0:00:30] ]555} 9. Nf3 {[%emt 0:00:00] ]55} Re8 {[%emt 0:00:30] ]555} 10. O-O {[%emt 0:00:00] ]]55} Nf8 {[%emt 0:00:00] ]]55} 11. h3 {[%emt 0:01:30] ]]55} Ng6 {[%emt 0:00:00] ]]55} 12. Rab1 {[%emt 0:01:30] ]]55} a5 {[%emt 0:00:30] ]]5} 13. a3 {[%emt 0:02:30] ]]]} Bd6 {[%emt 0:00:30] ]]]} 14. Na4 {[%emt 0:03:30] ]]]} h6 {[%emt 0:03:30] ]]]]} 15. Bxf6 {[%emt 0:02:30] ]]]]} Qxf6 {[%emt 0:00:30] ]]]]} 16. Nb6 {[%emt 0:02:30] ]]]]} Rb8 {[%emt 0:05:30] ]]]]} 17. Nxc8 {[%emt 0:03:30] ]]]]} Rbxc8 {[%emt 0:03:30] ]]]]} 18. Qa4 {[%emt 0:13:30] ]]]]} Ra8 {[%emt 0:02:30] ]]]]} 19. Rfe1 {[%emt 0:07:30] ]]]} Bc7 {[%emt 0:09:30] ]]]]} 20. Qb3 {[%emt 0:06:30] ]]]]} Rab8 {[%emt 0:10:30] ]]]]} 21. e4 {[%emt 0:06:30] ]]]]} Nf4 {[%emt 0:09:30] ]]]]} 22. e5 {[%emt 0:06:30] ]]]]} Qe6 {[%emt 0:02:30] ]]]]} 23. Bc2 {[%emt 0:05:30] ]]]]} Bd8 {[%emt 0:05:30] ]]]]} 24. Qe3 {[%emt 0:03:30] ]]]} Ng6 {[%emt 0:03:30] ]]]]} 25. g4 {[%emt 0:04:30] ]]]]} Nh4 {[%emt 0:06:30] ]]]]} 26. Nh2 {[%emt 0:08:53] [%clk 0:08.48]][%} f5 {[%emt 0:08:30] ]]} 27. Re2 {[%emt 0:11:19] %%ck} Rf8 {[%emt 0:09:08] %%cck} 28. Qd3 {[%emt 0:03:24] %%cck} Bg5 {[%emt 0:06:30] % [%clk 0:08:46] [%clk 0:06.58] [%clk 0:01:46] ] [%clk 0:01:46]} 1-0